Cogmind - Beta 11.1 @@@ ROGUE MODE // 2022.06.26 @ 19:39:51 Player: Espresso Result: Self-destructed Performance ------------- Evolutions (1) 500 Regions Visited (3) 600 Robots Destroyed (5) 25 Value Destroyed (87) 87 Prototype IDs (0) 0 Alien Tech Used (0) 0 Bonus (0) 0 TOTAL SCORE: 1212 Bonus ------- None Cogmind --------- Core Integrity 95/400 Matter 83/300 Energy 100/100 System Corruption 0% Temperature Cool (0) Movement Core (100) Ox1 Location -9/Materials Parts ------- > --- POWER (1) -------- (None) > --- PROPULSION (2) --- (None) > --- UTILITY (2) ------ Small Storage Unit > --- WEAPON (4) ------- (None) > --- INVENTORY (8) ---- Assault Rifle Mining Laser Peak State ------------ > --- POWER ------------ Ion Engine > --- PROPULSION ------- Aluminum Leg Aluminum Leg > --- UTILITY ---------- Small Storage Unit > --- WEAPON ----------- Assault Rifle Grenade Launcher > --- INVENTORY -------- Grenade Launcher [Rating: 6] Favorites ----------- Power Ion Engine Engine Ion Engine Propulsion Aluminum Leg Leg Aluminum Leg Hover Unit Hover Unit Utility Small Storage Unit Storage Small Storage Unit Weapon Grenade Launcher Ballistic Gun Assault Rifle Launcher Grenade Launcher Build | -11 -10 -10 -9 ------- Run | Scr Mat Min Mat Slots Evolved 2 | . . . 2 Power . | . . . . Propulsion . | . . . . Utility . | . . . . Weapon 2 | . . . 2 Parts Attached 8 | 5 2 . 1 Power 1 | 1 . . . Engine 1 | 1 . . . Core . | . . . . Reactor . | . . . . Propulsion 3 | 2 . . 1 Treads . | . . . . Leg 2 | 2 . . . Wheel . | . . . . Hover 1 | . . . 1 Flight . | . . . . Utility 1 | 1 . . . Device . | . . . . Storage 1 | 1 . . . Processor . | . . . . Hackware . | . . . . Protection . | . . . . Artifact . | . . . . Weapon 3 | 1 2 . . Energy Gun . | . . . . Energy Cannon . | . . . . Ballistic Gun 1 | 1 . . . Ballistic Cannon . | . . . . Launcher 2 | . 2 . . Special Weapon . | . . . . Impact Weapon . | . . . . Slashing Weapon . | . . . . Piercing Weapon . | . . . . Special Melee Weapon . | . . . . Unidentified Prototypes . | . . . . Parts Lost 6 | . . . 6 Power 1 | . . . 1 Propulsion 3 | . . . 3 Utility . | . . . . Weapon 2 | . . . 2 Highest Loss Streak 4 | . . . 4 To Critical Strikes . | . . . . Average Slot Usage (%) 60 | . 80 85 30 Engine 8 | . 14 14 . Leg 20 | . 28 28 10 Storage 12 | . 14 14 11 Ballistic Gun 1 | . 4 . . Launcher 15 | . 18 28 6 Naked Turns . | . . . . Heaviest Build 16 | 12 16 16 16 Greatest Support 20 | 20 20 20 20 Greatest Overweight (x) 1 | . . . 1 Average Overweight (x) . | . . . . Largest Inventory Capacity 8 | 8 8 8 8 Average Capacity 7 | 7 8 8 8 Most Carried 2 | . 2 2 2 Average Carried 1 | . . 2 2 Final Capacity 8 | 8 8 8 8 Final Carried 2 | . 2 2 2 Class Distribution -------------------- 100% | Mutant Dominant Class ---------------- Mutant | -10/Materials Mutant | -10/Mines Mutant | -9/Materials Resources | -11 -10 -10 -9 ----------- Run | Scr Mat Min Mat Matter Collected 121 | 109 . 12 . Remotely . | . . . . Salvage Created 97 | . 97 . . Parts 7 | . 7 . . Haulers Intercepted . | . . . . Recyclers Shooed . | . . . . Parts Field Recycled . | . . . . Retrieved Matter . | . . . . Parts Self-Destructed . | . . . . Prevented . | . . . . Kills | -11 -10 -10 -9 ------- Run | Scr Mat Min Mat Combat Hostiles Destroyed 3 | . 3 . . AOE 3 | . 3 . . Classes Destroyed 3 | . 3 . . Worker 1 | . 1 . . Recycler 1 | . 1 . . Swarmer 3 | . 3 . . Best Kill Streak 4 | . 4 . . Combat Bots Only 3 | . 3 . . Max Kills in Single Turn 2 | . 2 . . Gunslinging . | . . . . Exploded 2 | . 2 . . Melee . | . . . . Uniques/NPCs Destroyed . | . . . . Combat | -11 -10 -10 -9 -------- Run | Scr Mat Min Mat Damage Taken 831 | . 126 57 648 Core 332 | . . 27 305 Absorbed by Shields . | . . . . Core Remaining (%) 94 | 100 . 89 . Volleys Fired 10 | . 7 . 3 Largest 2 | . 2 . 1 Hottest 60 | . 60 . 30 Shots Fired 16 | . 13 . 3 Gun . | . . . . Cannon . | . . . . Launcher 16 | . 13 . 3 Special . | . . . . Kinetic . | . . . . Thermal . | . . . . Explosive 16 | . 13 . 3 Electromagnetic . | . . . . Robot Hit Streak 2 | . 2 . 2 Robot Miss Streak 1 | . 1 . 1 Penetration Max . | . . . . Secondary Targets . | . . . . Shots Hit Robots 4 | . 2 . 2 Core Hits 7 | . 6 . 1 Critical Kills . | . . . . Critical Parts Destroyed . | . . . . Critical Strikes . | . . . . Melee Attacks . | . . . . Impact . | . . . . Slashing . | . . . . Piercing . | . . . . Sneak Attacks . | . . . . Combat Hostiles . | . . . . Follow-up Attacks . | . . . . Damage Inflicted 379 | . 247 . 132 Guns . | . . . . Cannons . | . . . . Explosions 346 | . 247 . 99 Melee . | . . . . Ramming 33 | . . . 33 Kinetic . | . . . . Thermal . | . . . . Explosive 346 | . 247 . 99 Electromagnetic . | . . . . Impact . | . . . . Slashing . | . . . . Piercing . | . . . . Highest Corruption . | . . . . Average Corruption . | . . . . Corruption Purged . | . . . . Corruption Blocked . | . . . . Overload Shots . | . . . . Overflow Damage 12 | . . . 12 Projectiles . | . . . . Explosions 12 | . . . 12 Melee . | . . . . Knockbacks . | . . . . Impact . | . . . . Kinetic . | . . . . Secondary . | . . . . Self-Inflicted Damage 87 | . 31 . 56 Shots 4 | . 2 . 2 Rammed 9 | . . . 9 Targets Rammed 21 | . . . 21 Kicked 12 | . . . 12 Crushed . | . . . . Highest Temperature . | . . . . Average Temperature . | . . . . Received Heat Transfer 276 | . 18 18 240 Siege Activations . | . . . . Robots Corrupted . | . . . . Combat Hostiles . | . . . . Parts Fried . | . . . . Impact Corruptions . | . . . . Robots Melted . | . . . . Combat Hostiles . | . . . . Parts Melted . | . . . . Heat Transferred . | . . . . Parts Sabotaged . | . . . . Parts Stolen . | . . . . Parts Stripped . | . . . . Power Chain Reactions . | . . . . Missiles Intercepted . | . . . . Alert | -11 -10 -10 -9 ------- Run | Scr Mat Min Mat Peak Influence 326 | . 326 141 141 Initial 126 | . . 126 54 Average 117 | . 153 138 116 Maximum Alert Level 1 | . 1 . . Low Security (%) 83 | 100 51 100 100 Level 1 16 | . 48 . . Level 2 . | . . . . Level 3 . | . . . . Level 4 . | . . . . Level 5 . | . . . . High Security . | . . . . Max Security . | . . . . Squads Dispatched 3 | . 1 . 2 Investigation . | . . . . Extermination . | . . . . Reinforcement 3 | . 1 . 2 Assault . | . . . . Garrison . | . . . . Intercept . | . . . . Searches Triggered . | . . . . Construction Impeded . | . . . . Haulers Reinforced . | . . . . Active Scanning Responses . | . . . . Cargo Convoy Interrupts . | . . . . Stealth | -11 -10 -10 -9 --------- Run | Scr Mat Min Mat Distress Signals 2 | . 1 . 1 Communications Jammed . | . . . . Distress Signals . | . . . . Times Spotted 22 | . 10 2 10 Peak Tracking Total 7 | . 7 2 5 Tactical Retreats 1 | . . . 1 Traps | -11 -10 -10 -9 ------- Run | Scr Mat Min Mat Traps Triggered . | . . . . Indirectly . | . . . . Trap Hack Attempts . | . . . . Triggered . | . . . . Disarmed . | . . . . Reprogrammed . | . . . . Reused . | . . . . Traps Extracted . | . . . . Installed . | . . . . Triggered . | . . . . Machines | -11 -10 -10 -9 ---------- Run | Scr Mat Min Mat Machines Disabled 5 | . 4 . 1 Max in Single Turn 2 | . 2 . 1 Machines Sabotaged . | . . . . Garrisons Compromised . | . . . . Overloaded Fab Kills . | . . . . Hacking | -11 -10 -10 -9 --------- Run | Scr Mat Min Mat Machines Accessed . | . . . . Terminals . | . . . . Fabricators . | . . . . Repair Stations . | . . . . Recycling Units . | . . . . Scanalyzers . | . . . . Garrison Access . | . . . . Total Hacks . | . . . . Successful . | . . . . Failed . | . . . . Catastrophic . | . . . . Database Lockouts . | . . . . Manual . | . . . . Terminals . | . . . . Fabricators . | . . . . Repair Stations . | . . . . Recycling Units . | . . . . Scanalyzers . | . . . . Garrison Access . | . . . . Terminal Hacks . | . . . . Fabricator Hacks . | . . . . Repair Station Hacks . | . . . . Recycling Unit Hacks . | . . . . Scanalyzer . | . . . . Garrison Access Hacks . | . . . . Unauthorized Hacks . | . . . . Terminals . | . . . . Fabricators . | . . . . Repair Stations . | . . . . Recycling Units . | . . . . Scanalyzers . | . . . . Garrison Access . | . . . . Data Cores Recovered . | . . . . Used . | . . . . Hacking Detections . | . . . . Full Trace Events . | . . . . Feedback Events . | . . . . Feedback Blocked . | . . . . Robot Schematics Acquired . | . . . . Robots Built . | . . . . Authchips . | . . . . Time . | . . . . Total Robot Build Rating . | . . . . Part Schematics Acquired . | . . . . Parts Built . | . . . . Authchips . | . . . . Time . | . . . . Total Part Build Rating . | . . . . Parts Repaired . | . . . . Time . | . . . . Parts Recycled . | . . . . Recycled Matter . | . . . . Retrieved Matter . | . . . . Retrieved Components . | . . . . Parts Scanalyzed . | . . . . Part Schematics Acquired . | . . . . Parts Damaged . | . . . . Bothacking | -11 -10 -10 -9 ------------ Run | Scr Mat Min Mat Used RIF Installer . | . . . . Robots Hacked . | . . . . Non-combat . | . . . . Combat . | . . . . Robot Hacks Applied . | . . . . Relay Couplers Released . | . . . . Fabnet Peak Effective % . | . . . . Robots Rewired . | . . . . Allies Hacked . | . . . . Hacks Repelled . | . . . . Allies | -11 -10 -10 -9 -------- Run | Scr Mat Min Mat Total Allies . | . . . . Largest Group . | . . . . Highest-Rated Group . | . . . . Highest-Rated Ally . | . . . . Total Orders . | . . . . Ally Attacks . | . . . . Total Damage . | . . . . Kills . | . . . . Allies Corrupted . | . . . . Allies Melted . | . . . . Intel | -11 -10 -10 -9 ------- Run | Scr Mat Min Mat Robot Analysis Total . | . . . . Derelict Logs Recovered . | . . . . Drone Launches . | . . . . Drone Recoveries . | . . . . Exploration | -11 -10 -10 -9 ------------- Run | Scr Mat Min Mat Turns Passed 330 | 44 116 54 116 Spaces Moved 236 | 36 76 46 78 Core 31 | 8 . . 23 Treads . | . . . . Legs 187 | 28 76 46 37 Wheels . | . . . . Hover 18 | . . . 18 Flight . | . . . . Fastest Speed 50 | 50 120 120 60 Average Speed 111 | 104 120 120 100 Slowest Speed 120 | 120 120 120 120 Overloaded Moves . | . . . . Propulsion Burnouts . | . . . . Robots Hopped . | . . . . Cave-ins Triggered . | . . . . Exploration Rate (%) 19 | 3 33 22 18 Regions Visited 3 Branch Regions 1 Pre-discovered Areas . | . . . . Known Exits Taken . | . . . . Unknown Exits Taken 3 | 1 1 1 . Scrap Searched 1 | . . 1 . Spaces Dug . | . . . . Terrain Destroyed 62 | . 45 . 17 Melee . | . . . . Projectile . | . . . . AOE 62 | . 45 . 17 Terrain Rammed . | . . . . Walls Destroyed . | . . . . Machines Disabled . | . . . . Actions | -11 -10 -10 -9 --------- Run | Scr Mat Min Mat Total 281 | 40 87 45 109 Wait 6 | . . . 6 Move 233 | 35 75 45 78 Hop . | . . . . Pick Up 3 | . 3 . . Fast Attach 6 | 5 . . 1 Attach 1 | . 1 . . Detach . | . . . . Swap 1 | . 1 . . Drop . | . . . . Fire 10 | . 7 . 3 Melee . | . . . . Ram 9 | . . . 9 Kick 12 | . . . 12 Crush . | . . . . Escape Stasis . | . . . . Rewire . | . . . . Trap . | . . . . Miscellaneous . | . . . . Route ------- -11/Scrapyard -10/Materials -10/Mines -9/Materials History --------- Turn | Location | Event 6 | -11/Scrapyard | Discovered new exit (range 16) 45 | -11/Scrapyard | Entered Materials 149 | -10/Materials | Discovered new exit (range 6) 161 | -10/Materials | Entered Mines 203 | -10/Mines | Discovered new exit (range 11) 215 | -10/Mines | Entered Materials 215 | -9/Materials | Evolved 2 slots: Weapon x2 307 | -9/Materials | Build established: Mutant 322 | -9/Materials | Core integrity fell below 50% 331 | -9/Materials | Self-destructed Last Messages --------------- O-16 Technician uses terminal to summon reinforcements. ALERT: Hostiles spotted, dispatching reinforcements to Terminal M008. O-16 Technician locks terminal. U-05 Engineer lays Concrete. U-05 Engineer builds a Wall. Kicked G-34 Mercenary. Aluminum Leg destroyed. Kicked G-34 Mercenary. Kicked G-34 Mercenary out of the way. Grenade Launcher destroyed. Kicked G-34 Mercenary out of the way. Aluminum Leg destroyed. Material Processor disabled. Acquired Hover Unit. Hover Unit destroyed. Slammed into A-02 Transporter. Slammed into Y-45 Defender. Slammed into G-34 Mercenary. G-34 Mercenary destroyed. Slammed into G-34 Mercenary. Map ----- +----------------------------------------------------+ | #########????????????????????????????????????????? | | ! * #????????????????????????????????????????? | | * #????????????????????????????????????????? | | #????????????????????????????????????????? | | "" ##################???????????????????????? | | """"" + # #???????????????????????? | | """"" ##### # #???????????????????????? | | """"" #???# # #???????????????????????? | | """ #???# # #?#####?????????????????? | | #########???# / #?# #?????????????????? | | #???????????# # #?# #?????????????????? | | ????????????# # #?# #?????????????????? | | ????????????# # #?# #?????????????????? | | ????????????# # #?# /#??######?????????? | | ????????????# ########Y### #?? #?????????? | | ???????????? ????# # #? #?????????? | | ??????????? "" ##### ##+### """ #?????????? | | ?????????? T ! + """ #?????????? | | ?????????? ##### *%g###### """ #?????????? | | ?????????### #???# =Y#????? #?????????? | | ???????????#######???####g##??????######?????????? | | ????????????????????????# #??????????????????????? | | ????????????????????????# #??????????????????????? | | ????????????????????????# #??????????????????????? | | ????????????????????????# #??????????????????????? | | ????????????????????????#@#??????????????????????? | | ????????????????????????#g#??????????????????????? | | ????????????????????????# #??????????????????????? | | ????????????????????????# #??????????????????????? | | ????????????????????????# #??????????????????????? | | ????????????????????????#r#??????????????????????? | | ???????????????????????? +??????????????????????? | | ????????????????????????###??????????????????????? | | ?????????????????????????????????????????????????? | | ?????????????????????????????????????????????????? | | ?????????????????????????????????????????????????? | | ?????????????????????????????????????????????????? | | ?????????????????????????????????????????????????? | | ?????????????????????????????????????????????????? | | ?????????????????????????????????????????????????? | | ?????????????????????????????????????????????????? | | ?????????????????????????????????????????????????? | | ?????????????????????????????????????????????????? | | ?????????????????????????????????????????????????? | | ?????????????????????????????????????????????????? | | ?????????????????????????????????????????????????? | | ?????????????????????????????????????????????????? | | ?????????????????????????????????????????????????? | | ?????????????????????????????????????????????????? | | ?????????????????????????????????????????????????? | +----------------------------------------------------+ Best States ------------- Heat Dissipation 28 Energy Generation 10 Energy Capacity 250 Matter Stores 159 Matter Capacity 300 Sight Range 16 Terrain Scan Density 10 Evasion (%) 55 Item Schematics ----------------- None Robot Schematics ------------------ None Fabricated ------------ Nothing Alien Tech Used ----------------- None Achievements -------------- None Challenges ------------ None Game ------ Seed AbsorptionIonRedistributor Manual? 0 Play Time 00:04:15 Cumulative 2.3 hours Start 2022.06.26 @ 19:36:40 End 2022.06.26 @ 19:39:51 Sessions 1 Manual Loads 0 Difficulty Rogue Special Mode None Game No. 17 Rogue 17 Adventurer 0 Explorer 0 Win Type - Total 0 Types 0/0/0/0/0/0/0/0/0 Lore% 5 Gallery% 10 Achievement% 17 Wizard Run 0 Options --------- ASCII 0 Keyboard 0 Movement Numpad Keybinds 0 Fullscreen 1 Font 24/Terminus Map View 76x50 Tactical HUD 0 Map Filters NONE Filters NONE Steam 1 RUN: f461dc8c-4f22-4730-a906-1db5319de4b9